bitfinex-derivatives/quotes_ETHF0:USTF0_20241207
["timestamp","ask_amount","ask_price","bid_price","bid_amount"]
[1733544541495,0.17506,3992.4,3992.3,0.4115]
[1733544541900,3.38285,3992.5,3992.3,0.58656]
[1733544542099,3.38285,3992.5,3992.4,3.89467938]
[1733544542705,0.90187609,3992.7,3992.3,6.43364767]
[1733544543005,0.17505,3992.6,3992.5,3.89492962]
[1733544543503,0.17505,3992.5,3992.3,6.43364767]
[1733544544399,0.17505,3992.5,3992.4,5.84708767]
[1733544544599,0.90187609,3992.7,3992.3,6.43364767]
[1733544544797,0.17505,3992.5,3992.3,6.25858767]
[1733544545103,0.17505,3992.5,3992.4,0.17506]
[1733544545602,0.90187609,3992.7,3992.3,0.4115]
[1733544545800,0.17505,3992.6,3992.4,0.17505]
[1733544546995,0.17505,3992.6,3992.3,0.4115]
[1733544547191,0.17505,3992.6,3992.4,0.17506]
[1733544547698,0.90187609,3992.7,3992.3,0.4115]
[1733544547904,0.17505,3992.6,3992.3,0.4115]
[1733544548098,0.17505,3992.6,3992.4,0.17506]
[1733544548510,0.17505,3992.6,3992.5,0.4136]
[1733544548805,0.17505,3992.6,3992.5,0.58865]
[1733544548997,0.17505,3992.6,3992.5,0.4136]
[1733544549506,0.90187609,3992.7,3992.5,0.4136]
[1733544549803,1.07692609,3992.7,3992.5,0.58865]
[1733544551498,1.07692609,3992.7,3992.6,0.17505]
[1733544551701,0.3777,3992.8,3992.5,0.4136]
[1733544551901,0.3777,3992.8,3992.7,0.17504]
[1733544552305,0.3777,3992.8,3992.7,4.0769123]
[1733544552697,0.3777,3992.8,3992.7,0.17504]
[1733544553109,0.3777,3992.8,3992.6,5.84708767]
[1733544553300,0.55274,3992.8,3992.7,0.17504]
[1733544553999,0.3777,3992.8,3992.7,0.17504]
[1733544554206,0.3777,3992.8,3992.6,5.84708767]
[1733544554415,0.55274,3992.8,3992.6,5.84708767]
[1733544554708,0.3777,3992.8,3992.6,5.84708767]
[1733544554908,0.55274,3992.8,3992.6,5.84708767]
[1733544555111,0.3777,3992.8,3992.6,5.84708767]
[1733544555616,0.55274,3992.8,3992.7,5.84708767]
[1733544556107,0.3777,3992.8,3992.7,5.84708767]
[1733544556409,0.55274,3992.8,3992.7,5.84708767]
[1733544556608,0.3777,3992.8,3992.7,5.84708767]
[1733544557413,0.90187609,3992.9,3992.7,0.17504]
[1733544557704,1.07690609,3992.9,3992.8,6.25864611]
[1733544558011,0.17503,3993.0,3992.8,6.25864611]
[1733544558511,0.17503,3993.0,3992.9,0.3957]
[1733544561503,0.17503,3992.9,3992.8,0.401]
[1733544561706,0.17503,3992.9,3992.5,4.31893082]
[1733544561707,0.17505,3992.6,3992.5,4.72723082]
[1733544562400,0.17505,3992.6,3992.5,5.40923082]
[1733544563203,0.17505,3992.6,3992.5,5.58428082]
[1733544563403,0.90187609,3992.9,3992.5,5.58428082]
[1733544563606,0.17505,3992.7,3992.6,3.90533082]
[1733544565212,0.17505,3992.7,3992.6,4.08038082]
[1733544566105,0.17505,3992.7,3992.6,0.17505]
[1733544566306,3.2078,3993.1,3992.8,0.17504]
[1733544566515,0.17503,3993.2,3992.8,3.90651559]
[1733544566709,0.17503,3993.2,3993.1,0.17503]
[1733544567013,0.17503,3993.2,3993.1,4.76354559]
[1733544567314,0.17503,3993.2,3993.1,0.85703]
[1733544567707,0.17503,3993.2,3993.1,1.25483]
[1733544568317,3.2078,3993.5,3993.2,0.17502]
[1733544568511,0.17501,3993.5,3993.4,3.90378398]
[1733544568816,0.5789,3993.6,3993.4,5.85567597]
[1733544569006,0.5789,3993.6,3993.5,6.03068597]
[1733544569518,0.5789,3993.6,3993.5,5.85567597]
[1733544569818,0.5789,3993.6,3993.5,3.90158707]
[1733544570109,0.4039,3993.6,3993.5,3.9026084]
[1733544570313,0.17501,3993.5,3993.4,3.9026084]
[1733544570502,0.17501,3993.4,3993.3,6.03069597]
[1733544570708,0.17501,3993.4,3993.3,0.17502]
[1733544571213,0.17502,3993.4,3993.2,6.03069597]
[1733544571515,0.17502,3993.4,3993.3,0.17502]
[1733544571710,0.4039,3993.6,3993.2,5.85567597]
[1733544571905,0.17501,3993.5,3993.4,3.90231487]
[1733544573103,0.17501,3993.4,3993.3,3.90231487]
[1733544573311,1.46428609,3993.4,3993.3,3.90231487]
[1733544574318,1.28927609,3993.4,3993.1,3.8898]
[1733544574512,0.17502,3993.2,3993.1,3.8898]
[1733544576313,0.17502,3993.2,3993.1,4.2899]
[1733544579509,1.28927609,3993.4,3993.1,4.46493]
[1733544579712,0.17502,3993.2,3993.1,4.2899]
[1733544581923,0.17502,3993.2,3993.1,3.8898]
[1733544582622,0.17502,3993.2,3993.1,9.74547597]
[1733544584224,0.17502,3993.2,3993.1,9.44797597]
[1733544584425,0.17502,3993.2,3993.1,3.5923]
[1733544584617,0.17502,3993.2,3993.1,9.45519538]
[1733544586627,0.17502,3993.2,3993.1,9.07069538]
[1733544588129,0.17502,3993.2,3993.1,3.2078]
[1733544592029,0.4039,3993.6,3993.1,4.10967609]
[1733544592224,0.175,3993.8,3993.5,0.90187609]
[1733544592526,0.175,3993.8,3993.6,0.3973]
[1733544592721,0.175,3993.8,3993.7,0.7966]
[1733544594023,0.55589,3993.9,3993.7,0.7966]
[1733544594618,1.29007609,3994.2,3993.7,0.7966]
[1733544594830,3.38279,3994.0,3993.7,0.7966]
[1733544595128,0.17499,3993.9,3993.7,0.7966]
[1733544595530,0.57339,3993.9,3993.7,0.7966]
[1733544595730,0.175,3993.8,3993.7,0.7966]
[1733544595925,0.175,3993.8,3993.7,0.4127]
[1733544596729,1.30027609,3993.9,3993.6,5.86338513]
[1733544597027,1.07687609,3993.7,3993.6,5.86338513]
[1733544597928,2.21332233,3993.7,3993.6,5.86338513]
[1733544601733,2.03832233,3993.7,3992.8,0.682]
[1733544601926,1.07690609,3992.9,3992.8,0.682]
[1733544603540,0.17504,3992.8,3992.7,4.0084]
[1733544605835,6.15687544,3993.3,3992.7,9.87178513]
[1733544605836,2.94907544,3993.3,3992.7,9.87178513]
[1733544606038,8.51422631,3994.8,3993.3,0.43755]
[1733544606338,0.4134,3995.4,3994.7,3.90934496]
[1733544606339,0.90187609,3994.9,3994.7,3.90934496]
[1733544606534,0.17495,3994.8,3994.7,3.90934496]
[1733544606734,0.17495,3994.8,3994.7,3.90594622]
[1733544606936,0.90187609,3994.9,3994.5,5.86401745]
[1733544606937,1.27787609,3994.9,3994.5,5.86401745]
[1733544607135,1.27787609,3994.9,3994.7,3.90640267]
[1733544607637,0.17495,3994.8,3994.7,3.90640267]
[1733544608336,0.17496,3994.7,3994.6,3.90640267]
[1733544609135,1.27787609,3994.9,3994.6,3.90640267]
[1733544609446,0.17496,3994.7,3994.6,3.90640267]
[1733544611540,0.17496,3994.7,3994.5,3.90640267]
[1733544612637,3.2078,3995.0,3994.6,3.90640267]
[1733544612836,1.31527609,3995.4,3994.8,0.17495]
[1733544613044,1.07681609,3995.1,3994.8,0.17495]
[1733544613239,0.90187609,3995.1,3994.6,3.2078]
[1733544613445,0.17495,3995.0,3994.7,0.17496]
[1733544613634,0.17494,3995.0,3994.7,0.17495]
[1733544613838,0.17495,3994.9,3994.6,3.38276]
[1733544614041,0.17495,3994.9,3994.6,0.17496]
[1733544614449,0.17495,3994.8,3994.5,0.17496]
[1733544614642,0.17495,3994.9,3994.5,0.17496]
[1733544615342,0.90187609,3995.1,3994.5,0.17496]
[1733544615654,0.90187609,3994.8,3994.3,0.4072]
[1733544615848,0.17496,3994.6,3994.4,0.688]
[1733544617442,0.17497,3994.4,3994.3,0.4072]
[1733544617646,0.17497,3994.4,3994.1,0.4089]
[1733544617647,4.10967609,3994.4,3994.1,0.4089]
[1733544617842,0.175,3993.8,3993.7,0.7877]
[1733544618445,0.3917,3993.8,3992.8,4.07660148]
[1733544618749,0.17502,3993.2,3992.9,0.86303]
[1733544619547,0.17502,3993.2,3992.9,0.17503]
[1733544619851,0.17502,3993.2,3992.9,0.86303]
[1733544620046,0.17502,3993.2,3993.0,3.90156148]
[1733544620546,0.4111,3993.7,3993.0,3.90156148]
[1733544620744,0.17502,3993.3,3993.0,4.07659148]
[1733544622049,0.17502,3993.2,3993.0,4.07659148]
[1733544622748,0.17502,3993.3,3993.0,4.07659148]
[1733544622940,0.4111,3993.7,3993.0,3.90156148]
[1733544623136,0.17502,3993.2,3993.0,3.90156148]
[1733544623747,0.17502,3993.3,3993.0,4.07659148]
[1733544624148,0.4111,3993.7,3993.0,3.90156148]
[1733544624444,0.4111,3993.7,3993.1,4.07659148]
[1733544624445,0.17502,3993.3,3993.1,4.07659148]
[1733544624649,0.17502,3993.3,3993.0,4.07659148]
[1733544625441,3.2078,3994.0,3993.2,1.95480743]
[1733544625751,0.175,3993.8,3993.5,4.07657148]
[1733544626046,0.175,3993.8,3993.6,1.0659]
[1733544626842,0.175,3993.7,3993.6,1.0659]
[1733544627349,0.17498,3994.1,3993.9,0.17499]
[1733544627556,0.17498,3994.1,3994.0,0.4073]
[1733544627750,0.17498,3994.1,3994.0,0.8074]
[1733544628655,0.17498,3994.2,3994.0,0.8074]
[1733544628850,0.17498,3994.2,3994.0,0.98239]
[1733544629148,0.57338,3994.3,3994.0,0.8074]
[1733544629451,0.57338,3994.3,3994.1,0.17498]
[1733544629755,0.17498,3994.2,3994.0,0.98238]
[1733544630754,0.57338,3994.3,3994.0,0.98238]
[1733544630955,0.57338,3994.3,3994.0,0.8074]
[1733544630956,0.17498,3994.2,3994.0,0.8074]
[1733544631153,0.3984,3994.3,3994.0,0.8074]
[1733544631462,0.17498,3994.1,3994.0,0.8074]
[1733544633154,0.17498,3994.2,3994.0,0.8074]
[1733544633551,0.3984,3994.3,3994.0,0.8074]
[1733544633747,0.17498,3994.2,3994.0,0.98239]
[1733544634247,0.3984,3994.3,3994.0,0.98239]
[1733544634446,0.57338,3994.3,3994.0,0.98239]
[1733544634854,0.57337,3994.3,3994.0,0.98239]
[1733544635160,0.57337,3994.3,3994.1,0.17498]
[1733544635950,0.57337,3994.3,3994.0,4.88394148]
[1733544635951,0.17498,3994.2,3994.0,4.88394148]
[1733544638358,0.17497,3994.4,3994.1,3.90156148]
[1733544638555,0.17497,3994.4,3994.2,0.17497]
[1733544638965,0.4101,3994.5,3994.2,0.17497]
[1733544639152,0.17497,3994.3,3994.2,0.17497]
[1733544639355,0.17497,3994.4,3994.2,0.17497]
[1733544640263,0.4101,3994.5,3994.0,4.70896148]
[1733544640464,0.17498,3994.3,3994.1,0.17498]
[1733544641359,0.4101,3994.5,3994.1,4.07654148]
[1733544641764,0.4101,3994.5,3994.1,0.17498]
[1733544642360,0.17498,3994.3,3994.0,0.8074]
[1733544642560,0.17498,3994.3,3994.2,0.17498]
[1733544643760,0.17498,3994.3,3994.1,0.17498]
[1733544644162,1.31190072,3994.5,3994.0,0.8074]
[1733544644863,0.17498,3994.2,3994.0,0.98238]
[1733544645059,0.17498,3994.1,3994.0,0.8074]
[1733544645266,0.17499,3994.0,3993.8,0.17499]
[1733544645565,0.57059,3994.0,3993.8,0.17499]
[1733544647661,0.57059,3994.0,3993.8,0.175]
[1733544647862,0.3956,3994.0,3993.9,0.17499]
[1733544649067,0.3956,3994.0,3993.7,0.3851]
[1733544649068,0.175,3993.8,3993.7,0.3851]
[1733544649369,0.175,3993.7,3993.6,3.6116]
[1733544649572,0.5512,3993.7,3993.6,3.6116]
[1733544650063,0.5512,3993.7,3993.3,0.695]
[1733544650064,0.17501,3993.4,3993.3,0.695]
[1733544650264,0.90180072,3993.5,3993.2,7.81868993]
[1733544650470,0.17502,3993.3,3993.1,7.99371993]
[1733544651366,0.17502,3993.3,3993.1,0.17503]
[1733544651560,0.4065,3993.4,3993.0,8.58728993]
[1733544651767,0.17502,3993.2,3993.0,8.76231993]
[1733544651966,0.17502,3993.2,3993.1,7.81868993]
[1733544652675,0.17502,3993.3,3993.1,7.99371993]
[1733544652867,0.58152,3993.4,3993.1,7.99371993]
[1733544653068,0.4065,3993.4,3993.1,0.17503]
[1733544653267,0.17502,3993.3,3993.1,0.17503]
[1733544654274,0.17502,3993.3,3993.1,7.9998369]
[1733544655469,0.17502,3993.3,3993.1,0.17503]
[1733544657279,0.4065,3993.4,3993.2,0.17502]
[1733544657477,0.17502,3993.3,3993.2,0.17502]
[1733544659285,0.17502,3993.2,3993.1,0.17502]
[1733544659576,0.17502,3993.3,3993.1,0.17502]
[1733544659880,0.58151,3993.4,3993.2,0.17502]
[1733544660176,0.4065,3993.4,3993.0,1.4636]
[1733544660380,0.17502,3993.3,3993.1,0.17502]
[1733544660687,0.4065,3993.4,3993.2,7.83480815]
[1733544660876,0.17502,3993.3,3993.2,7.83480815]
[1733544661277,0.58152,3993.4,3993.2,8.00982815]
[1733544662077,0.58152,3993.4,3993.3,7.83480815]
[1733544662279,0.7499,3993.7,3993.3,7.83480815]
[1733544662280,0.3762,3993.7,3993.3,8.60233258]
[1733544662478,0.4046,3993.9,3993.5,7.83392818]
[1733544662676,0.4046,3993.9,3993.4,8.60230098]
[1733544662677,0.57959,3993.9,3993.7,0.175]
[1733544662875,0.57959,3993.9,3993.8,7.83392818]
[1733544663076,0.57959,3993.9,3993.7,8.00892818]
[1733544663585,0.57959,3993.9,3993.8,7.83392818]
[1733544663880,0.175,3993.8,3993.7,8.00892818]
[1733544664075,0.3882,3994.3,3994.0,0.17498]
[1733544664276,0.17498,3994.2,3994.1,5.87313239]
[1733544664476,1.07678072,3994.2,3994.0,5.87313239]
[1733544664676,1.07678072,3994.2,3994.1,5.87313239]
[1733544664875,0.90180072,3994.2,3994.0,5.87313239]
[1733544665182,0.17498,3994.1,3993.8,3.91587475]
[1733544665481,0.90180072,3993.9,3993.7,3.91587475]
[1733544665678,0.90180072,3993.9,3993.6,3.91587475]
[1733544665874,0.175,3993.7,3993.6,3.91587475]
[1733544666076,0.5774,3993.8,3993.6,3.91587475]
[1733544666279,0.5774,3993.8,3993.7,0.175]
[1733544667380,0.5774,3993.8,3993.7,3.91689533]
[1733544667986,0.5774,3993.8,3993.6,6.04869736]
[1733544668380,0.5774,3993.8,3993.7,0.175]
[1733544668674,0.5774,3993.8,3993.6,6.04869736]
[1733544668879,0.5774,3993.8,3993.7,3.91792917]
[1733544669081,0.175,3993.7,3993.6,3.91792917]
[1733544669286,0.5774,3993.8,3993.6,0.175]
[1733544669582,0.5774,3993.8,3993.7,3.918424]
[1733544669787,0.5774,3993.8,3993.6,4.093424]
[1733544670090,0.5774,3993.8,3993.6,3.918424]
[1733544670577,0.5774,3993.8,3993.5,5.87369736]
[1733544670578,0.5774,3993.8,3993.7,4.093424]
[1733544671484,0.5774,3993.8,3993.7,3.918424]
[1733544672382,0.5774,3993.8,3993.6,0.175]
[1733544672776,0.5774,3993.8,3993.7,5.88000381]
[1733544673180,0.5774,3993.8,3993.6,0.175]
[1733544673481,0.175,3993.7,3993.5,8.00585318]
[1733544674087,0.175,3993.7,3993.6,8.00584318]
[1733544674585,0.175,3993.7,3993.6,7.83084318]
[1733544674786,0.4024,3993.8,3993.5,8.00585318]
[1733544674787,0.175,3993.6,3993.5,8.00585318]
[1733544674988,0.175,3993.6,3993.5,0.17501]
[1733544675593,0.17501,3993.5,3993.4,7.83084318]
[1733544676092,0.90180072,3993.6,3993.3,7.83084318]
[1733544676389,0.90180072,3993.6,3993.3,8.00586318]
[1733544676390,0.17501,3993.4,3993.3,8.00586318]
[1733544676586,0.17501,3993.4,3993.2,7.83084318]
[1733544676788,0.56202,3993.3,3993.2,8.00586318]
[1733544676990,0.56202,3993.3,3993.2,8.78792435]
[1733544677395,0.56202,3993.3,3993.2,8.01822359]
[1733544678194,0.387,3993.3,3993.2,8.01822359]
[1733544678381,0.387,3993.3,3993.2,8.78742708]
[1733544678587,0.387,3993.3,3993.2,9.6892278]
[1733544678896,0.56202,3993.3,3993.2,8.78742708]
[1733544679597,0.17502,3993.3,3993.2,8.78742708]
[1733544681296,0.4129,3993.7,3993.2,8.61240708]
[1733544681594,0.17502,3993.4,3993.3,16.63607083]
[1733544681790,0.17502,3993.4,3993.3,16.63587562]
[1733544681991,0.17502,3993.4,3993.3,8.79051078]
[1733544682192,0.17502,3993.4,3993.3,16.63621916]
[1733544682591,0.17502,3993.4,3993.3,8.7906909]
[1733544683092,0.17502,3993.4,3993.3,8.6156809]
[1733544683392,0.17502,3993.4,3993.3,7.84606679]
[1733544683583,0.17502,3993.4,3993.3,8.79133287]
[1733544683996,0.17502,3993.4,3993.3,8.61631287]
[1733544684194,0.17502,3993.4,3993.3,16.46262174]
[1733544684394,0.17502,3993.4,3993.3,8.61631287]
[1733544684591,0.17502,3993.4,3993.3,16.46316912]
[1733544684792,0.17502,3993.4,3993.3,8.61631287]
[1733544684992,0.411,3993.6,3993.3,8.61687191]
[1733544685194,0.411,3993.6,3993.4,7.84677027]
[1733544685695,0.411,3993.6,3993.3,8.02179027]
[1733544686002,0.17501,3993.4,3993.3,8.02179027]
[1733544686188,0.17501,3993.4,3993.3,8.7927038]
[1733544686686,0.17501,3993.4,3993.3,8.79307781]
[1733544687291,0.411,3993.6,3993.2,0.90180072]
[1733544687496,0.17501,3993.5,3993.4,5.88574431]
[1733544687900,0.17501,3993.5,3993.4,6.06075431]
[1733544688485,0.17501,3993.5,3993.4,5.88574431]
[1733544689596,0.411,3993.6,3993.2,7.84724993]
[1733544689795,0.586,3993.6,3993.5,5.88777778]
[1733544690707,0.17501,3993.5,3993.4,5.88777778]
[1733544691298,0.17501,3993.4,3993.3,5.88777778]
[1733544691486,0.17502,3993.3,3993.2,0.17502]
[1733544692091,0.411,3993.6,3993.1,8.53624993]
[1733544692299,0.17501,3993.4,3993.2,0.17502]
[1733544692494,0.17501,3993.4,3993.2,8.02226993]
[1733544692697,0.17501,3993.4,3993.2,0.17502]
[1733544693299,0.17501,3993.4,3993.3,0.17502]
[1733544693500,0.17501,3993.4,3993.2,0.17502]
[1733544693804,0.17501,3993.4,3993.3,0.17502]
[1733544695394,0.17501,3993.4,3993.3,18.59378087]
[1733544695992,0.17501,3993.4,3993.3,8.80027068]
[1733544696397,0.17501,3993.4,3993.3,18.59378087]
[1733544696606,0.17501,3993.4,3993.3,8.62525068]
[1733544697793,0.17501,3993.4,3993.3,8.80027068]
[1733544697992,0.17501,3993.4,3993.3,18.59378087]
[1733544698594,0.17501,3993.4,3993.3,18.54545926]
[1733544700104,0.17501,3993.4,3993.3,18.37043926]
[1733544700698,0.17501,3993.4,3993.3,18.54545926]
[1733544702502,0.17501,3993.4,3993.3,8.02567563]
[1733544702704,0.17501,3993.5,3993.4,0.17501]
[1733544704210,0.17501,3993.4,3993.3,8.02566563]
[1733544705406,0.17501,3993.4,3993.3,16.60166409]
[1733544705607,0.17501,3993.4,3993.3,8.02566563]
[1733544705816,0.17501,3993.4,3993.3,0.17501]
[1733544707217,0.17501,3993.4,3993.3,8.02566563]
[1733544707418,0.17501,3993.4,3993.3,0.17501]
[1733544708015,0.17501,3993.4,3993.3,8.02566563]
[1733544708426,0.17501,3993.4,3993.3,0.17501]
[1733544708615,0.17501,3993.4,3993.3,8.02566563]
[1733544709525,0.17501,3993.4,3993.3,8.75416299]
[1733544710926,0.17501,3993.4,3993.3,8.75588609]
[1733544712932,0.17501,3993.5,3993.4,0.17501]
[1733544713232,0.40956594,3993.5,3993.4,18.4001555]
[1733544713530,0.40956594,3993.5,3993.4,8.75588609]
[1733544713730,0.40956594,3993.5,3993.4,18.5751655]
[1733544714431,0.40956594,3993.5,3993.4,8.75588609]
[1733544714622,0.23455594,3993.5,3993.4,8.75588609]
[1733544714820,3.32922352,3994.1,3993.4,0.90180072]
[1733544715023,0.7717,3994.1,3994.0,8.03037756]
[1733544715231,1.00624262,3994.1,3994.0,8.03037756]
[1733544715629,0.23454262,3994.1,3994.0,8.80346187]
[1733544715829,0.23454262,3994.1,3994.0,9.20506187]
[1733544716025,0.40952262,3994.1,3994.0,17.0590477]
[1733544716220,0.23454262,3994.1,3994.0,17.0590477]
[1733544716426,0.23454262,3994.1,3994.0,9.20506187]
[1733544717333,0.23454262,3994.1,3994.0,0.57659]
[1733544717632,0.40952262,3994.1,3994.0,0.57659]
[1733544717830,0.23454262,3994.1,3994.0,0.57659]
[1733544718529,0.17499,3994.0,3993.9,0.3943]
[1733544718729,0.175,3993.8,3993.6,0.175]
[1733544718929,0.90180072,3993.7,3993.6,0.4056]
[1733544719827,0.90180072,3993.7,3993.6,0.5806]
[1733544720035,0.55819,3993.9,3993.6,0.5806]
[1733544720238,0.55819,3993.9,3993.7,7.85375536]
[1733544720422,0.3832,3993.9,3993.7,7.85375536]
[1733544720627,0.175,3993.8,3993.7,7.85375536]
[1733544721032,0.40954464,3993.8,3993.7,3.92745918]
[1733544722333,0.175,3993.8,3993.7,3.92745918]
[1733544724839,0.175,3993.7,3993.6,5.89050462]
[1733544725035,3.1281543,3993.7,3993.6,5.89050462]
[1733544725532,1.07680072,3993.7,3993.6,8.63171958]
[1733544728733,0.17501,3993.5,3993.4,9.8171942]
[1733544729031,0.17501,3993.5,3993.4,18.45054162]
[1733544729236,0.17501,3993.6,3993.4,18.45054162]
[1733544729436,0.17501,3993.6,3993.5,8.63334742]
[1733544729943,0.17501,3993.6,3993.5,18.45054162]
[1733544730445,0.4095647,3993.6,3993.5,18.45054162]
[1733544730839,0.17501,3993.6,3993.5,18.45054162]
[1733544731045,0.40956181,3993.6,3993.5,18.45054162]
[1733544732340,0.40956181,3993.6,3993.5,7.86033556]
[1733544732542,0.40956181,3993.6,3993.5,16.49586408]
[1733544732953,0.40956181,3993.6,3993.5,7.86033556]
[1733544733447,0.40956181,3993.6,3993.5,16.4990515]
[1733544733643,0.40956181,3993.6,3993.5,16.49892656]
[1733544733948,0.40956181,3993.6,3993.5,16.50143144]
[1733544734140,0.40956181,3993.6,3993.5,8.638591]
[1733544734645,0.17501,3993.6,3993.5,8.638591]
[1733544736739,0.3832,3993.9,3993.8,0.17499]
[1733544736740,0.17499,3993.9,3993.8,0.17499]
[1733544736940,0.17499,3993.9,3993.8,8.03784]
[1733544737137,0.40953387,3993.9,3993.8,8.03784]
[1733544737349,3.3506543,3994.1,3993.9,0.17499]
[1733544737350,0.17499,3994.0,3993.9,0.17499]
[1733544738146,0.3975,3994.1,3993.8,8.03784]
[1733544738352,0.17499,3993.9,3993.8,8.03784]
[1733544738543,0.17499,3993.9,3993.8,16.67651235]
[1733544738742,0.17499,3993.9,3993.8,8.03784]
[1733544740354,3.1281443,3993.9,3993.8,6.07101278]
[1733544741153,2.9531543,3993.9,3993.8,6.07101278]
[1733544741453,3.1281443,3993.9,3993.8,6.07101278]
[1733544741845,3.1281443,3993.9,3993.8,0.17499]
[1733544742051,3.1281443,3993.9,3993.8,6.07101278]
[1733544742353,2.9531543,3993.9,3993.8,6.07101278]
[1733544742555,2.9531543,3994.0,3993.9,0.17499]
[1733544743352,3.2078,3994.2,3993.9,7.86285]
[1733544743551,3.93738221,3994.6,3994.5,0.17496]
[1733544743552,2.9531543,3994.6,3994.5,0.17496]
[1733544743857,3.2078,3994.7,3994.6,0.17496]
[1733544744147,3.2078,3994.7,3994.6,6.46595741]
[1733544744450,3.2078,3994.7,3994.6,0.57906]
[1733544744755,0.56063,3995.2,3995.1,0.17494]
[1733544744950,0.56063,3995.2,3995.0,0.17494]
[1733544745155,0.56063,3995.2,3994.9,5.88125107]
[1733544745355,0.56063,3995.2,3995.0,0.4044]
[1733544745555,0.56063,3995.2,3995.0,0.57934]
[1733544745745,0.56064,3995.2,3995.0,0.57934]
[1733544746249,0.90180072,3995.3,3995.0,0.4044]
[1733544746455,0.17493,3995.2,3995.0,0.99204]
[1733544747352,0.17493,3995.2,3995.0,4.91287405]
[1733544747552,0.17494,3995.1,3995.0,4.73793405]
[1733544747749,0.17494,3995.1,3995.0,0.8171]
[1733544748652,0.90180072,3995.3,3994.8,0.681]
[1733544748954,0.17495,3994.8,3994.7,4.60183405]
[1733544749346,1.29800072,3995.0,3994.6,8.60903405]
[1733544749656,1.07676072,3994.7,3994.6,8.60903405]
[1733544749845,1.07676072,3994.7,3994.6,4.6882]
[1733544750557,0.90180072,3994.7,3994.6,8.78399405]
[1733544750754,0.17495,3994.8,3994.6,8.78399405]
[1733544750755,0.17495,3994.8,3994.6,8.10299405]
[1733544751149,0.17495,3994.9,3994.6,8.10299405]
[1733544751457,0.17495,3994.8,3994.6,8.10299405]
[1733544751956,0.17495,3994.8,3994.6,4.89519405]
[1733544752151,0.17495,3994.8,3994.6,0.97436]
[1733544752459,0.17495,3994.8,3994.6,4.89519405]
[1733544752956,0.17495,3994.9,3994.7,0.17496]
[1733544753852,1.29800072,3995.0,3994.6,4.89519405]
[1733544754157,1.29800072,3995.0,3994.6,0.97436]
[1733544754758,0.3846,3995.4,3994.6,0.7994]
[1733544754954,0.4033,3994.9,3994.6,0.7994]
[1733544755261,0.17496,3994.7,3994.6,0.97436]
[1733544755450,0.4033,3994.9,3994.6,0.7994]
[1733544755655,0.17495,3994.8,3994.7,0.17495]
[1733544756053,0.4033,3994.9,3994.6,0.4041]
[1733544756356,0.55546,3994.7,3994.6,0.4041]
[1733544760456,0.17496,3994.6,3994.5,0.681]
[1733544762063,0.17496,3994.7,3994.5,0.681]
[1733544762254,0.4033,3994.9,3994.5,0.85596]
[1733544762461,0.17496,3994.6,3994.5,4.77679405]
[1733544764068,0.17496,3994.6,3994.5,0.85596]
[1733544765068,0.4033,3994.9,3994.5,0.681]
[1733544765370,0.17496,3994.7,3994.6,0.17496]
[1733544767075,0.4033,3994.9,3994.5,4.60183405]
[1733544767076,0.17496,3994.6,3994.5,4.77679405]
[1733544767265,0.17496,3994.6,3994.5,0.85596]
[1733544767466,0.17496,3994.6,3994.5,4.77679405]
[1733544768266,0.4033,3994.9,3994.5,4.60183405]
[1733544768470,0.17496,3994.6,3994.5,4.77679405]
[1733544768669,0.17496,3994.6,3994.5,0.85596]
[1733544772379,0.4033,3994.9,3994.5,0.681]
[1733544772580,0.17496,3994.7,3994.6,0.17496]
[1733544773384,0.40945022,3994.7,3994.6,0.17496]
[1733544774481,0.23449022,3994.7,3994.6,0.17496]
[1733544774980,0.57825,3994.9,3994.8,0.17495]
[1733544775380,0.4033,3994.9,3994.8,0.17495]
[1733544776087,0.57825,3994.9,3994.8,0.17495]
[1733544776283,0.17495,3994.8,3994.7,0.4131]
[1733544776586,0.17496,3994.7,3994.6,4.09579405]
[1733544777680,0.17496,3994.7,3994.6,0.17496]
[1733544780787,0.17495,3994.8,3994.7,0.17495]
[1733544782390,0.40943885,3994.8,3994.7,0.17495]
[1733544790388,0.17495,3994.8,3994.7,0.17495]
[1733544792595,0.57825,3994.9,3994.8,0.17495]
[1733544793996,0.57825,3994.9,3994.8,8.80678459]
[1733544794501,0.57825,3994.9,3994.8,18.61969548]
[1733544794997,3.2078,3995.0,3994.8,18.44474548]
[1733544795204,3.38274,3995.0,3994.9,19.01979548]
[1733544795902,0.7888,3995.4,3994.9,9.03193459]
[1733544796091,0.96373,3995.4,3995.3,0.17493]
[1733544796296,0.96373,3995.4,3995.3,18.45177458]
[1733544796498,0.96373,3995.4,3995.3,16.48555086]
[1733544796704,0.96373,3995.4,3995.3,7.85371627]
[1733544797695,0.17493,3995.3,3995.2,7.85371627]
[1733544797891,0.17493,3995.3,3995.2,16.48186453]
[1733544800194,3.2078,3995.5,3995.2,18.44808825]
[1733544800392,3.2078,3995.5,3995.4,1.07673072]
[1733544800699,3.2078,3995.5,3995.4,9.70487898]
[1733544801006,4.1552,3995.9,3995.7,0.17491]
[1733544801205,4.1552,3995.9,3995.8,5.88428818]
[1733544801608,0.17491,3995.8,3995.7,5.88428818]
[1733544803404,0.17491,3995.8,3995.6,6.46309818]
[1733544804105,0.17491,3995.8,3995.7,5.88428818]
[1733544804307,0.17491,3995.7,3995.6,6.28818818]
[1733544804607,0.17491,3995.8,3995.6,6.46310818]
[1733544805506,4.88210072,3995.9,3995.6,6.28818818]
[1733544805701,4.88210072,3995.9,3995.7,5.88428818]
[1733544805900,4.88210072,3995.9,3995.8,0.17491]
[1733544805901,3.9803,3995.9,3995.8,0.17491]
[1733544806099,3.2078,3996.4,3995.7,8.74751829]
[1733544806301,0.17488,3996.6,3996.4,0.17488]
[1733544806602,0.58307,3996.7,3996.5,4.71097068]
[1733544807103,0.4082,3996.7,3996.5,4.71097068]
[1733544807307,0.58307,3996.7,3996.6,3.91707068]
[1733544807507,0.58307,3996.7,3996.5,4.88585068]